Workbook

Sheet Sheet1
A1: 1
A2: Invert | B2: 1105.395 | C2: Slope of pipe | D2: =(B2-B3)/B5 -> 0.03193740686
A3: Invert | B3: 1103.252 | C3: Length of pipe at Centerline | D3: 34.3 | F3: PIPE Thick | G3: ELV at CL | H3: CL ELV | J3: Cover Over Pipes in Feet
C4: Flowline Elevation at CL | D4: =(D3*D2)+B3 -> 1104.347453 | F4: 2 | G4: =D4+F4 -> 1106.347453 | H4: 1111.38 | J4: =H4-G4 -> 5.032546945
A5: Length | B5: 67.1
A9: 2
A10: Invert | B10: 1239.146 | C10: Slope of pipe | D10: =(B11-B10)/B13 -> 0.03869121672
A11: Invert | B11: 1240.701 | C11: Length of pipe at Centerline | D11: 20.37 | F11: PIPE Thick | G11: ELV at CL | H11: CL ELV | J11: Cover Over Pipes in Feet
C12: Flowline Elevation at CL | D12: =(D11*D10)+B10 -> 1239.93414 | F12: 2 | G12: =D12+F12 -> 1241.93414 | H12: 1244.51 | J12: =H12-G12 -> 2.575859915
A13: Length | B13: 40.19
A17: 3
A18: Invert | B18: 1231.032
A19: Invert | B19: 1227.584
A21: Length | B21: 50.49
A25: 4
A26: Invert | B26: 1212.382 | C26: Slope of pipe | D26: =(B26-B27)/B29 -> 0.09305580159
A27: Invert | B27: 1207.129 | C27: Length of pipe at Centerline | D27: 33.95 | F27: PIPE Thick | G27: ELV at CL | H27: CL ELV | J27: Cover Over Pipes in Feet
C28: Flowline Elevation at CL | D28: =(D27*D26)+B27 -> 1210.288244 | F28: 2 | G28: =D28+F28 -> 1212.288244 | H28: 1218.02 | J28: =H28-G28 -> 5.731755536
A29: Length | B29: 56.45
A33: 5
A34: Invert | B34: 1174.772 | C34: Slope of pipe | D34: =(B34-B35)/B37 -> 0.02954230236
A35: Invert | B35: 1173.494 | C35: Length of pipe at Centerline | D35: 19.76 | F35: PIPE Thick | G35: ELV at CL | H35: CL ELV | J35: Cover Over Pipes in Feet
C36: Flowline Elevation at CL | D36: =(D35*D34)+B35 -> 1174.077756 | F36: 2 | G36: =D36+F36 -> 1176.077756 | H36: 1178.45 | J36: =H36-G36 -> 2.372244105
A37: Length | B37: 43.26
A41: 6
A42: Invert | B42: 1031.15 | C42: Slope of pipe | D42: =(B42-B43)/B45 -> 0.06461845608
A43: Invert | B43: 1028.237 | C43: Length of pipe at Centerline | D43: 26.57 | F43: PIPE Thick | G43: ELV at CL | H43: CL ELV | J43: Cover Over Pipes in Feet
C44: Flowline Elevation at CL | D44: =(D43*D42)+B43 -> 1029.953912 | F44: 2 | G44: =D44+F44 -> 1031.953912 | H44: 1038.13 | J44: =H44-G44 -> 6.176087622
A45: Length | B45: 45.08
A49: 7
A50: Invert | B50: 984.217 | C50: Slope of pipe | D50: =(B51-B50)/B53 -> 0.04279727606
A51: Invert | B51: 986.668 | C51: Length of pipe at Centerline | D51: 34.91 | F51: PIPE Thick | G51: ELV at CL | H51: CL ELV | J51: Cover Over Pipes in Feet
C52: Flowline Elevation at CL | D52: =(D51*D50)+B51 -> 988.1620529 | F52: 3 | G52: =D52+F52 -> 991.1620529 | H52: 996.72 | J52: =H52-G52 -> 5.557947093
A53: Length | B53: 57.27
A57: 8
A58: Invert | B58: 967.93 | C58: Slope of pipe | D58: =(B59-B58)/B61 -> 0.1070089286
A59: Invert | B59: 975.121 | C59: Length of pipe at Centerline | D59: 35.61 | F59: PIPE Thick | G59: ELV at CL | H59: CL ELV | J59: Cover Over Pipes in Feet
C60: Flowline Elevation at CL | D60: =(D59*D58)+B59 -> 978.9315879 | F60: 3 | G60: =D60+F60 -> 981.9315879 | H60: 985.4 | J60: =H60-G60 -> 3.468412054
A61: Length | B61: 67.2
A65: 9
A66: Invert | B66: 920.468 | C66: Slope of pipe | D66: =(B67-B66)/B69 -> 0.1648559553
A67: Invert | B67: 931.97 | C67: Length of pipe at Centerline | D67: 43.29 | F67: PIPE Thick | G67: ELV at CL | H67: CL ELV | J67: Cover Over Pipes in Feet
C68: Flowline Elevation at CL | D68: =(D67*D66)+B66 -> 927.6046143 | F68: 2 | G68: =D68+F68 -> 929.6046143 | H68: 936.88 | J68: =H68-G68 -> 7.275385696
A69: Length | B69: 69.77
A73: 10
A74: Invert | B74: 737.67 | C74: Slope of pipe | D74: =(B74-B75)/B77 -> 0.004627249357
A75: Invert | B75: 737.472 | C75: Length of pipe at Centerline | D75: 24.78 | F75: PIPE Thick | G75: ELV at CL | H75: CL ELV | J75: Cover Over Pipes in Feet
C76: Flowline Elevation at CL | D76: =(D75*D74)+B75 -> 737.5866632 | F76: 4 | G76: =D76+F76 -> 741.5866632 | H76: 744.29 | J76: =H76-G76 -> 2.703336761
A77: Length | B77: 42.79
A81: 11
A82: Invert | B82: 701.451 | C82: Slope of pipe | D82: =(B83-B82)/B85 -> 0.02198757764
A83: Invert | B83: 702.513 | C83: Length of pipe at Centerline | D83: 26.94 | F83: PIPE Thick | G83: ELV at CL | H83: CL ELV | J83: Cover Over Pipes in Feet
C84: Flowline Elevation at CL | D84: =(D83*D82)+B82 -> 702.0433453 | F84: 2 | G84: =D84+F84 -> 704.0433453 | H84: 705.59 | J84: =H84-G84 -> 1.546654658
A85: Length | B85: 48.3
A89: 12
A90: Invert | B90: 694.733 | C90: Slope of pipe | D90: =(B90-B91)/B93 -> 0.03727831431
A91: Invert | B91: 692.61 | C91: Length of pipe at Centerline | D91: 34.71 | F91: PIPE Thick | G91: ELV at CL | H91: CL ELV | J91: Cover Over Pipes in Feet
C92: Flowline Elevation at CL | D92: =(D91*D90)+B91 -> 693.9039303 | F92: 2.5 | G92: =D92+F92 -> 696.4039303 | H92: 700.81 | J92: =H92-G92 -> 4.40606971
A93: Length | B93: 56.95
